Cogmind - Beta 11.1 @@@ ROGUE MODE // 2022.05.07 @ 14:07:45 Player: Shifty Result: Self-destructed Performance ------------- Evolutions (2) 1000 Regions Visited (4) 800 Robots Destroyed (49) 245 Value Destroyed (1009) 1009 Prototype IDs (1) 20 Alien Tech Used (0) 0 Bonus (0) 0 TOTAL SCORE: 3074 Bonus ------- None Cogmind --------- Core Integrity 477/550 Matter 281/300 Energy 2/100 System Corruption 0% Temperature Cool (9) Movement Core (700) Ox13 Location -8/Materials Parts ------- > --- POWER (2) -------- (None) > --- PROPULSION (2) --- (None) > --- UTILITY (4) ------ High-capacity Storage Unit Visual Processing Unit ECM Suite > --- WEAPON (3) ------- (None) > --- INVENTORY (20) --- Improved Ion Engine Large Storage Unit Huge Storage Unit Weight Redist. System Seismic Detector Advanced Targeting Computer Light Armor Plating Tractor Beam Shock Rifle Particle Gun Mini Grenade Launcher Peak State ------------ > --- POWER ------------ Light Ion Engine > --- PROPULSION ------- Aluminum Leg Aluminum Leg > --- UTILITY ---------- Large Storage Unit Visual Processing Unit ECM Suite Medium Armor Plating > --- WEAPON ----------- Light EM Pulse Cannon Improved Light Cannon Mini Grenade Launcher > --- INVENTORY -------- Improved Ion Engine Aluminum Leg Huge Storage Unit Weight Redist. System Seismic Detector Advanced Targeting Computer Light Armor Plating Tractor Beam EM Shotgun Shock Rifle Ion Cannon Mini Grenade Launcher [Rating: 17] Favorites ----------- Power Light Ion Engine Engine Light Ion Engine Propulsion Aluminum Leg Leg Aluminum Leg Utility ECM Suite Device ECM Suite Storage Large Storage Unit Processor Visual Processing Unit Protection Medium Armor Plating Weapon Heavy Assault Rifle Energy Gun Medium Laser Energy Cannon Light EM Pulse Cannon Ballistic Gun Heavy Assault Rifle Ballistic Cannon Improved Light Cannon Launcher Grenade Launcher Special Weapon Plasma Cutter Build | -11 -10 -9 -9 -8 ------- Run | Scr Mat Mat Sto Mat Slots Evolved 4 | . . 2 . 2 Power 1 | . . . . 1 Propulsion . | . . . . . Utility 2 | . . 1 . 1 Weapon 1 | . . 1 . . Parts Attached 34 | 6 6 9 8 5 Power 6 | 1 . 4 1 . Engine 6 | 1 . 4 1 . Core . | . . . . . Reactor . | . . . . . Propulsion 7 | 2 1 1 2 1 Treads . | . . . . . Leg 7 | 2 1 1 2 1 Wheel . | . . . . . Hover . | . . . . . Flight . | . . . . . Utility 7 | 1 3 1 . 2 Device 2 | . 2 . . . Storage 3 | 1 1 . . 1 Processor 1 | . . 1 . . Hackware . | . . . . . Protection 1 | . . . . 1 Artifact . | . . . . . Weapon 14 | 2 2 3 5 2 Energy Gun 4 | 1 . 2 . 1 Energy Cannon 2 | . . . 1 1 Ballistic Gun 3 | 1 1 1 . . Ballistic Cannon 1 | . . . 1 . Launcher 3 | . 1 . 2 . Special Weapon 1 | . . . 1 . Impact Weapon . | . . . . . Slashing Weapon . | . . . . . Piercing Weapon . | . . . . . Special Melee Weapon . | . . . . . Unidentified Prototypes 1 | . . 1 . . Parts Lost 20 | . . 3 7 10 Power 2 | . . 1 . 1 Propulsion 6 | . . 1 2 3 Utility 1 | . . . . 1 Weapon 11 | . . 1 5 5 Highest Loss Streak 7 | . . 2 2 7 To Critical Strikes . | . . . . . Average Slot Usage (%) 94 | . 98 99 91 86 Engine 11 | . 14 10 11 8 Leg 21 | . 27 21 20 17 Device 11 | . 12 11 11 9 Storage 11 | . 14 11 11 9 Processor 8 | . . 11 11 9 Protection 1 | . . . . 8 Energy Gun 6 | . . 16 2 2 Energy Cannon 3 | . . . 5 8 Ballistic Gun 9 | . 14 11 8 . Ballistic Cannon 3 | . . . 5 8 Launcher 6 | . 13 5 2 5 Naked Turns . | . . . . . Heaviest Build 65 | 12 30 37 36 65 Greatest Support 20 | 20 20 20 20 20 Greatest Overweight (x) 10 | . 1 3 10 4 Average Overweight (x) . | . . 1 1 2 Largest Inventory Capacity 20 | 8 15 15 15 20 Average Capacity 14 | 6 11 15 15 17 Most Carried 13 | 1 7 8 10 13 Average Carried 6 | . 4 6 8 10 Final Capacity 20 | 8 15 15 15 20 Final Carried 11 | . 7 7 10 11 Class Distribution -------------------- 37% | Mutant 24% | Scavenger-Skirmisher 14% | Skirmisher 11% | Tank 11% | Scavenger-Mutant Dominant Class ---------------- Mutant | -10/Materials Scavenger-Skirmisher | -9/Materials Scavenger-Mutant | -9/Storage Tank | -8/Materials Resources | -11 -10 -9 -9 -8 ----------- Run | Scr Mat Mat Sto Mat Matter Collected 1077 | 260 112 395 215 95 Remotely . | . . . . . Salvage Created 1171 | . 86 510 353 222 Parts 92 | . 17 35 20 20 Haulers Intercepted 1 | . . 1 . . Recyclers Shooed 1 | . . 1 . . Parts Field Recycled . | . . . . . Retrieved Matter . | . . . . . Parts Self-Destructed . | . . . . . Prevented . | . . . . . Kills | -11 -10 -9 -9 -8 ------- Run | Scr Mat Mat Sto Mat Combat Hostiles Destroyed 33 | . 6 12 7 8 Guns 15 | . 3 7 4 1 Cannons 5 | . . . 2 3 AOE 13 | . 3 5 1 4 Classes Destroyed 9 | . 4 4 . 1 Worker 2 | . 1 . 1 . Builder 4 | . 1 2 1 . Tunneler 1 | . . . . 1 Hauler 1 | . . 1 . . Recycler 1 | . . 1 . . Watcher 7 | . 2 1 2 2 Swarmer 16 | . 6 4 . 6 Grunt 12 | . . 5 6 1 Sentry 5 | . . 3 1 1 Best Kill Streak 6 | . 6 6 4 6 Combat Bots Only 6 | . 3 5 2 6 Max Kills in Single Turn 3 | . 3 2 1 2 Gunslinging . | . . . . . Exploded 2 | . 2 2 1 2 Melee . | . . . . . Uniques/NPCs Destroyed . | . . . . . Combat | -11 -10 -9 -9 -8 -------- Run | Scr Mat Mat Sto Mat Damage Taken 1732 | . 148 572 300 712 Core 251 | . 29 124 25 73 Absorbed by Shields . | . . . . . Core Remaining (%) 83 | 100 88 . 62 . Volleys Fired 101 | . 18 33 28 22 Largest 3 | . 2 3 3 3 Hottest 144 | . 70 113 125 144 Shots Fired 202 | . 24 80 50 48 Gun 126 | . 19 72 26 9 Cannon 51 | . . . 16 35 Launcher 22 | . 5 8 5 4 Special 3 | . . . 3 . Kinetic 99 | . 18 34 30 17 Thermal 39 | . 1 28 3 7 Explosive 22 | . 5 8 5 4 Electromagnetic 42 | . . 10 12 20 Robot Hit Streak 16 | . 1 16 7 11 Robot Miss Streak 5 | . 4 3 2 5 Penetration Max . | . . . . . Secondary Targets 1 | . . 1 . . Max Gunslinging Chain 1 | . . 1 . . Shots Hit Robots 90 | . 5 39 25 21 Core Hits 70 | . 10 28 17 15 Critical Kills . | . . . . . Critical Parts Destroyed . | . . . . . Critical Strikes 2 | . . 1 . 1 Burn 1 | . . 1 . . Blast 1 | . . . . 1 Melee Attacks . | . . . . . Impact . | . . . . . Slashing . | . . . . . Piercing . | . . . . . Sneak Attacks . | . . . . . Combat Hostiles . | . . . . . Follow-up Attacks . | . . . . . Damage Inflicted 2799 | . 451 817 705 826 Guns 916 | . 94 523 177 122 Cannons 515 | . . . 205 310 Explosions 1356 | . 357 294 311 394 Melee . | . . . . . Ramming . | . . . . . Kinetic 822 | . 94 315 322 91 Thermal 275 | . . 151 54 70 Explosive 1314 | . 357 294 269 394 Electromagnetic 388 | . . 57 60 271 Impact . | . . . . . Slashing . | . . . . . Piercing . | . . . . . Highest Corruption 1 | . . 1 1 . Average Corruption 1 | . . 1 1 . Corruption Purged . | . . . . . Corruption Blocked . | . . . . . Effects 10 | . . 4 6 . Message Errors 3 | . . . 3 . Matter Fused 3 | . . 2 1 . Energy Discharges 1 | . . 1 . . Data Loss (minor) 1 | . . . 1 . Data Loss (major) 1 | . . . 1 . Misfires 1 | . . 1 . . Overload Shots . | . . . . . Overflow Damage 32 | . 30 . 1 1 Projectiles . | . . . . . Explosions 32 | . 30 . 1 1 Melee . | . . . . . Knockbacks 1 | . . . . 1 Impact . | . . . . . Kinetic 1 | . . . . 1 Secondary . | . . . . . Self-Inflicted Damage . | . . . . . Shots . | . . . . . Rammed . | . . . . . Targets Rammed 1 | . . . 1 . Kicked 1 | . . . 1 . Crushed . | . . . . . Highest Temperature 292 | . 9 292 163 262 Average Temperature 75 | . 6 71 52 93 Received Heat Transfer 585 | . . 114 138 333 Siege Activations . | . . . . . Robots Corrupted . | . . . . . Combat Hostiles . | . . . . . Parts Fried 2 | . . . . 2 Impact Corruptions . | . . . . . Robots Melted . | . . . . . Combat Hostiles . | . . . . . Parts Melted . | . . . . . Heat Transferred 716 | . . 518 87 111 Parts Sabotaged . | . . . . . Parts Stolen . | . . . . . Parts Stripped . | . . . . . Power Chain Reactions 1 | . . . 1 . Missiles Intercepted . | . . . . . Alert | -11 -10 -9 -9 -8 ------- Run | Scr Mat Mat Sto Mat Peak Influence 388 | . 324 388 298 293 Initial 98 | . . 61 98 44 Average 194 | . 150 267 176 154 Maximum Alert Level 1 | . 1 1 1 1 Low Security (%) 52 | 100 73 19 61 73 Level 1 47 | . 26 80 38 26 Level 2 . | . . . . . Level 3 . | . . . . . Level 4 . | . . . . . Level 5 . | . . . . . High Security . | . . . . . Max Security . | . . . . . Squads Dispatched 4 | . . 2 1 1 Investigation 2 | . . 1 . 1 Extermination . | . . . . . Reinforcement 2 | . . 1 1 . Assault . | . . . . . Garrison . | . . . . . Intercept . | . . . . . Searches Triggered . | . . . . . Construction Impeded 1 | . . . 1 . Haulers Reinforced . | . . . . . Active Scanning Responses . | . . . . . Cargo Convoy Interrupts . | . . . . . Stealth | -11 -10 -9 -9 -8 --------- Run | Scr Mat Mat Sto Mat Distress Signals 3 | . 2 1 . . Communications Jammed . | . . . . . Distress Signals . | . . . . . Times Spotted 53 | . 13 14 15 11 Peak Tracking Total 6 | . 4 5 4 6 Tactical Retreats 5 | . 1 1 2 1 Traps | -11 -10 -9 -9 -8 ------- Run | Scr Mat Mat Sto Mat Traps Triggered 6 | . 2 2 1 1 Indirectly . | . . . . . Trap Hack Attempts . | . . . . . Triggered . | . . . . . Disarmed . | . . . . . Reprogrammed . | . . . . . Reused . | . . . . . Traps Extracted . | . . . . . Installed . | . . . . . Triggered . | . . . . . Machines | -11 -10 -9 -9 -8 ---------- Run | Scr Mat Mat Sto Mat Machines Disabled 1 | . . . . 1 Max in Single Turn 1 | . . . . 1 Machines Sabotaged . | . . . . . Garrisons Compromised . | . . . . . Overloaded Fab Kills . | . . . . . Hacking | -11 -10 -9 -9 -8 --------- Run | Scr Mat Mat Sto Mat Machines Accessed 7 | . 4 2 1 . Terminals 6 | . 4 1 1 . Fabricators . | . . . . . Repair Stations . | . . . . . Recycling Units 1 | . . 1 . . Scanalyzers . | . . . . . Garrison Access . | . . . . . Total Hacks 12 | . 7 3 2 . Successful 7 | . 4 3 . . Failed 5 | . 3 . 2 . Catastrophic 1 | . . . 1 . Database Lockouts . | . . . . . Manual . | . . . . . Terminals 11 | . 7 2 2 . Fabricators . | . . . . . Repair Stations . | . . . . . Recycling Units 1 | . . 1 . . Scanalyzers . | . . . . . Garrison Access . | . . . . . Terminal Hacks 6 | . 4 2 . . Record 5 | . 3 2 . . Alert Level 1 | . 1 . . . Fabricator Hacks . | . . . . . Repair Station Hacks . | . . . . . Recycling Unit Hacks 1 | . . 1 . . Recycle Component 1 | . . 1 . . Scanalyzer . | . . . . . Garrison Access Hacks . | . . . . . Unauthorized Hacks . | . . . . . Terminals . | . . . . . Fabricators . | . . . . . Repair Stations . | . . . . . Recycling Units . | . . . . . Scanalyzers . | . . . . . Garrison Access . | . . . . . Data Cores Recovered . | . . . . . Used . | . . . . . Hacking Detections 4 | . 3 1 . . Full Trace Events 1 | . 1 . . . Feedback Events . | . . . . . Feedback Blocked . | . . . . . Robot Schematics Acquired . | . . . . . Robots Built . | . . . . . Authchips . | . . . . . Time . | . . . . . Total Robot Build Rating . | . . . . . Part Schematics Acquired . | . . . . . Parts Built . | . . . . . Authchips . | . . . . . Time . | . . . . . Total Part Build Rating . | . . . . . Parts Repaired . | . . . . . Time . | . . . . . Parts Recycled 1 | . . 1 . . Recycled Matter . | . . . . . Retrieved Matter . | . . . . . Retrieved Components . | . . . . . Parts Scanalyzed . | . . . . . Part Schematics Acquired . | . . . . . Parts Damaged . | . . . . . Bothacking | -11 -10 -9 -9 -8 ------------ Run | Scr Mat Mat Sto Mat Used RIF Installer . | . . . . . Robots Hacked . | . . . . . Non-combat . | . . . . . Combat . | . . . . . Robot Hacks Applied . | . . . . . Relay Couplers Released . | . . . . . Fabnet Peak Effective % . | . . . . . Robots Rewired . | . . . . . Allies Hacked . | . . . . . Hacks Repelled . | . . . . . Allies | -11 -10 -9 -9 -8 -------- Run | Scr Mat Mat Sto Mat Total Allies . | . . . . . Largest Group . | . . . . . Highest-Rated Group . | . . . . . Highest-Rated Ally . | . . . . . Total Orders . | . . . . . Ally Attacks . | . . . . . Total Damage . | . . . . . Kills . | . . . . . Allies Corrupted . | . . . . . Allies Melted . | . . . . . Intel | -11 -10 -9 -9 -8 ------- Run | Scr Mat Mat Sto Mat Robot Analysis Total . | . . . . . Derelict Logs Recovered . | . . . . . Drone Launches . | . . . . . Drone Recoveries . | . . . . . Exploration | -11 -10 -9 -9 -8 ------------- Run | Scr Mat Mat Sto Mat Turns Passed 3085 | 73 623 1052 838 499 Spaces Moved 1318 | 53 365 442 347 111 Core 10 | 5 . . 5 . Treads . | . . . . . Legs 1308 | 48 365 442 342 111 Wheels . | . . . . . Hover . | . . . . . Flight . | . . . . . Fastest Speed 50 | 50 120 190 190 260 Average Speed 187 | 113 149 193 200 281 Slowest Speed 550 | 120 190 330 550 400 Overloaded Moves . | . . . . . Propulsion Burnouts . | . . . . . Robots Hopped . | . . . . . Cave-ins Triggered . | . . . . . Exploration Rate (%) 34 | 3 67 36 49 15 Regions Visited 4 Branch Regions 1 Pre-discovered Areas . | . . . . . Known Exits Taken . | . . . . . Unknown Exits Taken 4 | 1 1 1 1 . Scrap Searched . | . . . . . Spaces Dug 19 | . . . 19 . Terrain Destroyed 185 | . 20 46 46 73 Melee . | . . . . . Projectile 9 | . . . 1 8 AOE 176 | . 20 46 45 65 Terrain Rammed . | . . . . . Walls Destroyed . | . . . . . Machines Disabled . | . . . . . Actions | -11 -10 -9 -9 -8 --------- Run | Scr Mat Mat Sto Mat Total 1757 | 66 419 575 442 255 Wait 261 | 2 18 82 47 112 Move 1314 | 52 364 441 346 111 Hop . | . . . . . Pick Up 40 | 6 11 8 10 5 Fast Attach . | . . . . . Attach 26 | 6 3 6 7 4 Detach . | . . . . . Swap 8 | . 3 3 1 1 Drop 4 | . 2 2 . . Fire 101 | . 18 33 28 22 Melee . | . . . . . Ram . | . . . . . Kick 1 | . . . 1 . Crush . | . . . . . Escape Stasis . | . . . . . Rewire 2 | . . . 2 . Trap . | . . . . . Miscellaneous . | . . . . . Route ------- -11/Scrapyard -10/Materials -9/Materials (discovered 3 exits: [*Mat] / [*Min] / *Sto) -9/Storage -8/Materials History --------- Turn | Location | Event 2 | -11/Scrapyard | Met Revision 17 16 | -11/Scrapyard | Discovered new exit (range 14) 74 | -11/Scrapyard | Entered Materials 301 | -10/Materials | Build established: Mutant 527 | -10/Materials | Discovered new exit (range 11) 697 | -10/Materials | Entered another Materials area 697 | -9/Materials | Evolved 2 slots: Utility x1, Weapon x1 898 | -9/Materials | Discovered new exit (range 6) 1173 | -9/Materials | Discovered new exit (range 9) 1312 | -9/Materials | Discovered new exit (range 6) 1570 | -9/Materials | Build established: Scavenger-Skirmisher 1749 | -9/Materials | Entered Storage 2489 | -9/Storage | Discovered new exit (range 17) 2587 | -9/Storage | Entered Materials 2587 | -8/Materials | Evolved 2 slots: Power x1, Utility x1 2915 | -8/Materials | Lost 3 parts (1n2w) 3086 | -8/Materials | Self-destructed Last Messages --------------- 03073_ U-05 Engineer lays Concrete. 03074_ R-06 Scavenger collects Corrupted Aluminum Leg. 03074_ U-05 Engineer lays Concrete. 03074_ Acquired Corrupted Particle Gun. 03076_ U-05 Engineer lays Concrete. 03078_ Critical hit (Burn: +37). 03079_ U-05 Engineer builds a Wall. 03079_ U-05 Engineer lays Concrete. 03080_ R-06 Scavenger collects Imp. Terrain Scanner. 03080_ Aluminum Leg destroyed. 03080_ R-06 Scavenger collects Seismic Detector. 03081_ U-05 Engineer lays Concrete. 03082_ R-06 Scavenger collects Wheel. 03082_ G-47 Trooper IFF system glitched. 03082_ K-01 Serf destroyed. 03083_ U-05 Engineer builds a Wall. 03083_ R-06 Scavenger collects Wheel. 03084_ U-05 Engineer builds a Wall. 03085_ R-06 Scavenger collects Sml. Matter Pod. 03086_ Ion Cannon destroyed. Map ----- +----------------------------------------------------+ | ?????????????????????????????????????????????#%%[ | | ????????????????????????????????????????????## ### | | ????????????????????????????????????????????#" #?? | | ????????????????????????????????#########???## #?? | | ????????????????????????????????# !"#????#%#?? | | ????????????????????????????????#""" #?????# #?? | | ????????????????????????????????#""" #?????# #?? | | ????????????????????????????????#""" #?????# #?? | | ????????????????????????????????# #?????# #?? | | ????????????????????????????????# = #???### ### | | ????????????????????????????????####/####### # | | ?????????????????????????????????# # | | ?????????????????????????????????# | | ?????????????????????????????????# # | | ????????????????????????????????## ####### # | | ???????????????????????########### #########/### | | ???????????[ ] ###### a + #????? | | ??????????????? / # """ #????? | | ?????????????????????### # """ #????? | | ???????????????????????# ## """ #????? | | ???????????????????????# ## """ #????? | | ???????????????????????# u ## """ ?????? | | ?????????????????????### r "#########? ?????? | | ?????????????????????# # ## ## ###?? """ #????? | | ????????????????????#####g#######????? """ #????? | | ????????????????????# g@ ru#?????? """ ?????? | | ????????????????????# % r*#??????? ""???????? | | ????????????????????############??????? "????????? | | ?????????????????????????????????????????????????? | | ?????????????????????????????????????????????????? | | ?????????????????????????????????????????????????? | | ?????????????????????????????????????????????????? | | ?????????????????????????????????????????????????? | | ?????????????????????????????????????????????????? | | ?????????????????????????????????????????????????? | | ?????????????????????????????????????????????????? | | ?????????????????????????????????????????????????? | | ?????????????????????????????????????????????????? | | ?????????????????????????????????????????????????? | | ?????????????????????????????????????????????????? | | ?????????????????????????????????????????????????? | | ?????????????????????????????????????????????????? | | ?????????????????????????????????????????????????? | | ?????????????????????????????????????????????????? | | ?????????????????????????????????????????????????? | | ?????????????????????????????????????????????????? | | ?????????????????????????????????????????????????? | | ?????????????????????????????????????????????????? | | ?????????????????????????????????????????????????? | | ?????????????????????????????????????????????????? | +----------------------------------------------------+ Best States ------------- Heat Dissipation 31 Energy Generation 12 Energy Capacity 265 Matter Stores 300 Matter Capacity 300 Sight Range 18 Terrain Scan Density 10 ECM Strength 1 Armor Coverage 225 Evasion (%) 55 Item Schematics ----------------- None Robot Schematics ------------------ None Fabricated ------------ Nothing Alien Tech Used ----------------- None Achievements -------------- Loot Pinata Challenges ------------ None Game ------ Seed MicroBombAutohacker Manual? 0 Play Time 00:32:40 Cumulative 2.5 hours Start 2022.05.07 @ 13:37:05 End 2022.05.07 @ 14:07:45 Sessions 1 Manual Loads 0 Difficulty Rogue Special Mode None Game No. 7 Rogue 5 Adventurer 2 Explorer 0 Win Type - Total 0 Types 0/0/0/0/0/0/0/0/0 Lore% 4 Gallery% 9 Achievement% 6 Wizard Run 0 Options --------- ASCII 0 Keyboard 0 Movement Numpad Keybinds 0 Fullscreen 1 Font 18/SmallcapsGlow Map View 76x50 Tactical HUD 1 Map Filters NONE Filters NONE Steam 1 RUN: 3598e2fc-2e67-47a9-a532-6f0ed59917a9